Workbook

Sheet concepta Connector 110 (hidden)
A1: Berechungstool HAWA-Concepta 25/30/40/50 | L1: 3 | M1: 30 | N1: 1 | O1: 1 | P1: 1 | Q1: 2 | S1: =+C25 -> 648 | T1: =+C31 -> 648
A2: =VLOOKUP("T_Text18", Texte,Languaje, FALSE) -> Spanplatte | B2: 1) Grundmasse | Q2: =VLOOKUP("T_Text25", Texte,Languaje, FALSE) -> "M" minimun = Türdicke
A3: =VLOOKUP("T_Text19", Texte,Languaje, FALSE) -> MDF | B3: Material | C3: MDF
A4: =VLOOKUP("T_Text20", Texte,Languaje, FALSE) -> Tischlerplatte | B4: =VLOOKUP("T_Text1", Texte,Languaje, FALSE) -> Einbauhöhe (EH) | C4: 1250 | D4: mm | H4: =C4*C5*C6*C7/10^9 -> 17.10625
A5: =VLOOKUP("T_Text21", Texte,Languaje, FALSE) -> Fichte / Tanne | B5: =VLOOKUP("T_Text2", Texte,Languaje, FALSE) -> Türbreite (TB) | C5: 700 | D5: mm | Q5: =VLOOKUP("T_Text28", Texte,Languaje, FALSE) -> Zurück
A6: =VLOOKUP("T_Text22", Texte,Languaje, FALSE) -> Sonstiges (Bitte spezifisches Gewicht eingeben) | B6: =VLOOKUP("T_Text3", Texte,Languaje, FALSE) -> Türdicke | C6: 23 | D6: mm | Q6: =VLOOKUP("T_Text29", Texte,Languaje, FALSE) -> Drucken
B7: =VLOOKUP("T_Text4", Texte,Languaje, FALSE) -> Spezifisches Gewicht | C7: 850 | D7: kg/m3 | Q7: =VLOOKUP("T_Text30", Texte,Languaje, FALSE) -> Ja
B8: M | C8: 225 | Q8: =VLOOKUP("T_Text31", Texte,Languaje, FALSE) -> Nein
B9: =VLOOKUP("T_Text5", Texte,Languaje, FALSE) -> Tür Gewicht | C9: =C4*C5*C6*C7/10^9 -> 17.10625 | D9: kg
B11: =VLOOKUP("T_Text45", Texte,Languaje, FALSE) -> Zwischenluft Seite (Z3) | C11: 3 | D11: mm
B12: =VLOOKUP("T_Text46", Texte,Languaje, FALSE) -> Zwischenluft oben (Z1) | C12: 4 | D12: mm | P12: =VLOOKUP("T_Text46", Texte,Languaje, FALSE) -> Zwischenluft oben (Z1)
B13: =VLOOKUP("T_Text47", Texte,Languaje, FALSE) -> Zwischenluft unten (Z2) | C13: 2 | D13: mm | P13: =VLOOKUP("T_Text47", Texte,Languaje, FALSE) -> Zwischenluft unten (Z2)
B14: =VLOOKUP("T_Text48", Texte,Languaje, FALSE) -> Türhöhe (TH) | C14: =+C4-C12-C13 -> 1244 | D14: mm | P14: =VLOOKUP("T_Text45", Texte,Languaje, FALSE) -> Zwischenluft Seite (Z3)
B15: =VLOOKUP("T_Text5", Texte,Languaje, FALSE) -> Tür Gewicht | C15: =+C9 -> 17.10625 | D15: kg
B16: =VLOOKUP("T_Text72", Texte,Languaje, FALSE) -> TA | C16: =+M1 -> 30 | D16: mm
B18: 2) Korpusmasse
B19: =VLOOKUP("T_Text44", Texte,Languaje, FALSE) -> Bitte eine Variante auswählen
B20: =VLOOKUP("T_Text49", Texte,Languaje, FALSE) -> Fixes "M" wählen | C20: =VLOOKUP("T_Text53", Texte,Languaje, FALSE) -> minimale Korpustiefe (KT)
B23: M fix und KT variabel
B24: Türüberstand (M) | C24: 125 | D24: mm
B25: Beschlagtiefe (T) | C25: =+C5-C24+73 -> 648 | D25: mm
B26: Einschubtiefe ( E) | C26: =+C25-73 -> 575 | D26: mm
B27: =VLOOKUP("T_Text53", Texte,Languaje, FALSE) -> minimale Korpustiefe (KT) | C27: =+C25 -> 648 | D27: mm
B29: KT fix und M variabel | N29: =VLOOKUP("T_Text67", Texte,Languaje, FALSE) -> Zubehör separat bestellen
B30: =VLOOKUP("T_Text54", Texte,Languaje, FALSE) -> Korpustiefe (KT) | D30: mm | N30: =VLOOKUP("T_Text62", Texte,Languaje, FALSE) -> Connector 110 mm: Nische für Zwei Dreh-Einschiebetüre.
B31: =VLOOKUP("T_Text55", Texte,Languaje, FALSE) -> Beschlagtiefe (T) | C31: =+C5-C33+73 -> 648 | D31: mm | N31: =VLOOKUP("T_Text63", Texte,Languaje, FALSE) -> Leichmetall farblos eloxiert, 1 Stück
B32: =VLOOKUP("T_Text56", Texte,Languaje, FALSE) -> Einschubtiefe ( E) | C32: =+C31-73 -> 575 | D32: mm | N32: =VLOOKUP("T_Text64", Texte,Languaje, FALSE) -> 650 mm, Ident. Nr. 23223
B33: =VLOOKUP("T_Text57", Texte,Languaje, FALSE) -> Türüberstand (M) | C33: =IF(C42<0,0,IF(C43<=0,0,C42)) -> 125 | D33: mm | N33: =VLOOKUP("T_Text65", Texte,Languaje, FALSE) -> 900 mm, Ident. Nr. 23224
N34: =VLOOKUP("T_Text66", Texte,Languaje, FALSE) -> 26 mm, Ident. Nr. 23225
A40: =VLOOKUP("T_Text75", Texte,Languaje, FALSE) -> T wird zu gross, bitte TH oder TB ändern, bis T:
A41: =VLOOKUP("T_Text76", Texte,Languaje, FALSE) -> TH = ( 1250-1850) mm; T <=650 mm
A42: =VLOOKUP("T_Text77", Texte,Languaje, FALSE) -> TH = ( 1851-2850) mm; T <=900mm | C42: =IF(P1=2,C5+73-C30,IF(P1=1,C24,"")) -> 125
A43: =VLOOKUP("T_Text78", Texte,Languaje, FALSE) -> Gewicht ist zu hoch | C43: =IF(P1=2,C5+73-C30,IF(P1=1,C24,"")) -> 125

Sheet concepta Connector 55 (hidden)
A1: Berechungstool HAWA-Concepta 25/30/40/50 | N1: 1 | O1: 1 | P1: 0 | Q1: 2 | S1: =+C25 -> 650 | T1: =+C31 -> 
A2: =VLOOKUP("T_Text18", Texte,Languaje, FALSE) -> Spanplatte | B2: 1) Grundmasse | Q2: =VLOOKUP("T_Text25", Texte,Languaje, FALSE) -> "M" minimun = Türdicke
A3: =VLOOKUP("T_Text19", Texte,Languaje, FALSE) -> MDF | B3: Material | C3: Spanplatte
A4: =VLOOKUP("T_Text20", Texte,Languaje, FALSE) -> Tischlerplatte | B4: =VLOOKUP("T_Text1", Texte,Languaje, FALSE) -> Einbauhöhe (EH) | C4: 1257 | D4: mm | H4: =C4*C5*C6*C7/10^9 -> 14.78232 | Q4: =VLOOKUP("T_Text27", Texte,Languaje, FALSE) -> zurücksetzen
A5: =VLOOKUP("T_Text21", Texte,Languaje, FALSE) -> Fichte / Tanne | B5: =VLOOKUP("T_Text2", Texte,Languaje, FALSE) -> Türbreite (TB) | C5: 700 | D5: mm | Q5: =VLOOKUP("T_Text28", Texte,Languaje, FALSE) -> Zurück
A6: =VLOOKUP("T_Text22", Texte,Languaje, FALSE) -> Sonstiges (Bitte spezifisches Gewicht eingeben) | B6: =VLOOKUP("T_Text3", Texte,Languaje, FALSE) -> Türdicke | C6: 24 | D6: mm | Q6: =VLOOKUP("T_Text29", Texte,Languaje, FALSE) -> Drucken
B7: =VLOOKUP("T_Text4", Texte,Languaje, FALSE) -> Spezifisches Gewicht | C7: 700 | D7: kg/m3 | Q7: =VLOOKUP("T_Text30", Texte,Languaje, FALSE) -> Ja
B8: M | C8: 225 | D8: mm | Q8: =VLOOKUP("T_Text31", Texte,Languaje, FALSE) -> Nein
B9: =VLOOKUP("T_Text5", Texte,Languaje, FALSE) -> Tür Gewicht | C9: =C4*C5*C6*C7/10^9 -> 14.78232 | D9: kg
B11: =VLOOKUP("T_Text45", Texte,Languaje, FALSE) -> Zwischenluft Seite (Z3) | C11: 3 | D11: mm
B12: =VLOOKUP("T_Text46", Texte,Languaje, FALSE) -> Zwischenluft oben (Z1) | C12: 3 | D12: mm | Q12: =VLOOKUP("T_Text46", Texte,Languaje, FALSE) -> Zwischenluft oben (Z1)
B13: =VLOOKUP("T_Text47", Texte,Languaje, FALSE) -> Zwischenluft unten (Z2) | C13: 3 | D13: mm | Q13: =VLOOKUP("T_Text47", Texte,Languaje, FALSE) -> Zwischenluft unten (Z2)
B14: =VLOOKUP("T_Text48", Texte,Languaje, FALSE) -> Türhöhe (TH) | C14: =+C4-C12-C13 -> 1251 | D14: mm | Q14: =VLOOKUP("T_Text45", Texte,Languaje, FALSE) -> Zwischenluft Seite (Z3)
B15: =VLOOKUP("T_Text5", Texte,Languaje, FALSE) -> Tür Gewicht | C15: =+C9 -> 14.78232 | D15: kg
B16: =VLOOKUP("T_Text72", Texte,Languaje, FALSE) -> TA | C16: =31.5-C11 -> 28.5 | D16: mm
B18: 2) Korpusmasse
B19: =VLOOKUP("T_Text44", Texte,Languaje, FALSE) -> Bitte eine Variante auswählen
B20: =VLOOKUP("T_Text49", Texte,Languaje, FALSE) -> Fixes "M" wählen | C20: =VLOOKUP("T_Text53", Texte,Languaje, FALSE) -> minimale Korpustiefe (KT)
B23: M fix und KT variabel
B24: Türüberstand (M) | C24: 123 | D24: mm
B25: Beschlagtiefe (T) | C25: =+C5-C24+73 -> 650 | D25: mm
B26: Einschubtiefe ( E) | C26: =+C25-73 -> 577 | D26: mm
B27: =VLOOKUP("T_Text53", Texte,Languaje, FALSE) -> minimale Korpustiefe (KT) | C27: =+C25 -> 650 | D27: mm
B29: KT fix und M variabel | N29: =VLOOKUP("T_Text67", Texte,Languaje, FALSE) -> Zubehör separat bestellen
B30: =VLOOKUP("T_Text54", Texte,Languaje, FALSE) -> Korpustiefe (KT) | C30: 650 | D30: mm | N30: =VLOOKUP("T_Text58", Texte,Languaje, FALSE) -> Connector 55 mm: Nische für eine Dreh-Einschiebetüre.
B31: =VLOOKUP("T_Text55", Texte,Languaje, FALSE) -> Beschlagtiefe (T) | C31: =+C5-C33+73 ->  | D31: mm | N31: =VLOOKUP("T_Text59", Texte,Languaje, FALSE) -> Leichmetall farblos eloxiert, 1 Stück
B32: =VLOOKUP("T_Text56", Texte,Languaje, FALSE) -> Einschubtiefe ( E) | C32: =+C31-73 ->  | D32: mm | N32: =VLOOKUP("T_Text60", Texte,Languaje, FALSE) -> 650 mm, Ident. Nr. 23221
B33: =VLOOKUP("T_Text57", Texte,Languaje, FALSE) -> Türüberstand (M) | C33: =IF(C42<0,0,IF(C43<=0,0,C42)) ->  | D33: mm | N33: =VLOOKUP("T_Text61", Texte,Languaje, FALSE) -> 900 mm, Ident. Nr. 23222
A40: =VLOOKUP("T_Text75", Texte,Languaje, FALSE) -> T wird zu gross, bitte TH oder TB ändern, bis T:
A41: =VLOOKUP("T_Text76", Texte,Languaje, FALSE) -> TH = ( 1250-1850) mm; T <=650 mm
A42: =VLOOKUP("T_Text77", Texte,Languaje, FALSE) -> TH = ( 1851-2850) mm; T <=900mm | C42: =IF(P1=2,C5+73-C30,IF(P1=1,C24,"")) -> 
A43: =VLOOKUP("T_Text78", Texte,Languaje, FALSE) -> Gewicht ist zu hoch | C43: =IF(P1=2,C5+73-C30,IF(P1=1,C24,"")) -> 

Sheet Mauernische (hidden)
A1: Berechungstool HAWA-Concepta 25/30/40/50 | N1: 1 | O1: 1 | P1: 0 | Q1: 2 | S1: =+C25 -> 648 | T1: =+C31 -> 
A2: =VLOOKUP("T_Text18", Texte,Languaje, FALSE) -> Spanplatte | B2: =VLOOKUP("T_Text42", Texte,Languaje, FALSE) -> 1) Grundmasse | Q2: =VLOOKUP("T_Text25", Texte,Languaje, FALSE) -> "M" minimun = Türdicke
A3: =VLOOKUP("T_Text19", Texte,Languaje, FALSE) -> MDF | B3: Material | C3: Spanplatte | Q3: =VLOOKUP("T_Text26", Texte,Languaje, FALSE) -> Weiter
A4: =VLOOKUP("T_Text20", Texte,Languaje, FALSE) -> Tischlerplatte | B4: =VLOOKUP("T_Text1", Texte,Languaje, FALSE) -> Einbauhöhe (EH) | C4: 1250 | D4: mm | H4: =C4*C5*C6*C7/10^9 -> 14.7
A5: =VLOOKUP("T_Text21", Texte,Languaje, FALSE) -> Fichte / Tanne | B5: =VLOOKUP("T_Text2", Texte,Languaje, FALSE) -> Türbreite (TB) | C5: 700 | D5: mm | Q5: =VLOOKUP("T_Text28", Texte,Languaje, FALSE) -> Zurück
A6: =VLOOKUP("T_Text22", Texte,Languaje, FALSE) -> Sonstiges (Bitte spezifisches Gewicht eingeben) | B6: =VLOOKUP("T_Text3", Texte,Languaje, FALSE) -> Türdicke | C6: 24 | D6: mm | Q6: =VLOOKUP("T_Text29", Texte,Languaje, FALSE) -> Drucken
B7: =VLOOKUP("T_Text4", Texte,Languaje, FALSE) -> Spezifisches Gewicht | C7: 700 | D7: kg/m3 | Q7: =VLOOKUP("T_Text30", Texte,Languaje, FALSE) -> Ja
B8: M | C8: 225 | D8: mm | Q8: =VLOOKUP("T_Text31", Texte,Languaje, FALSE) -> Nein
B9: =VLOOKUP("T_Text5", Texte,Languaje, FALSE) -> Tür Gewicht | C9: =C4*C5*C6*C7/10^9 -> 14.7 | D9: kg
B11: =VLOOKUP("T_Text45", Texte,Languaje, FALSE) -> Zwischenluft Seite (Z3) | C11: 3 | D11: mm
B12: =VLOOKUP("T_Text46", Texte,Languaje, FALSE) -> Zwischenluft oben (Z1) | C12: 6 | D12: mm | Q12: =VLOOKUP("T_Text46", Texte,Languaje, FALSE) -> Zwischenluft oben (Z1)
B13: =VLOOKUP("T_Text47", Texte,Languaje, FALSE) -> Zwischenluft unten (Z2) | C13: 5 | D13: mm | Q13: =VLOOKUP("T_Text47", Texte,Languaje, FALSE) -> Zwischenluft unten (Z2)
B14: =VLOOKUP("T_Text48", Texte,Languaje, FALSE) -> Türhöhe (TH) | C14: =+C4-C12-C13 -> 1239 | D14: mm | Q14: =VLOOKUP("T_Text45", Texte,Languaje, FALSE) -> Zwischenluft Seite (Z3)
B15: =VLOOKUP("T_Text5", Texte,Languaje, FALSE) -> Tür Gewicht | C15: =+C9 -> 14.7 | D15: kg
B16: =VLOOKUP("T_Text72", Texte,Languaje, FALSE) -> TA | C16: =31.5-C11 -> 28.5 | D16: mm
B18: =VLOOKUP("T_Text43", Texte,Languaje, FALSE) -> 2) Korpusmasse
B19: =VLOOKUP("T_Text44", Texte,Languaje, FALSE) -> Bitte eine Variante auswählen
B20: =VLOOKUP("T_Text49", Texte,Languaje, FALSE) -> Fixes "M" wählen | C20: =VLOOKUP("T_Text53", Texte,Languaje, FALSE) -> minimale Korpustiefe (KT)
B23: M fix und KT variabel
B24: Türüberstand (M) | C24: 125 | D24: mm
B25: Beschlagtiefe (T) | C25: =+C5-C24+73 -> 648 | D25: mm
B26: Einschubtiefe ( E) | C26: =+C25-73 -> 575 | D26: mm
B27: =VLOOKUP("T_Text53", Texte,Languaje, FALSE) -> minimale Korpustiefe (KT) | C27: =+C25 -> 648 | D27: mm
B29: KT fix und M variabel
B30: =VLOOKUP("T_Text54", Texte,Languaje, FALSE) -> Korpustiefe (KT) | D30: mm
B31: =VLOOKUP("T_Text55", Texte,Languaje, FALSE) -> Beschlagtiefe (T) | C31: =+C5-C33+73 ->  | D31: mm
B32: =VLOOKUP("T_Text56", Texte,Languaje, FALSE) -> Einschubtiefe ( E) | C32: =+C31-73 ->  | D32: mm
B33: =VLOOKUP("T_Text57", Texte,Languaje, FALSE) -> Türüberstand (M) | C33: =IF(C42<0,0,IF(C43<=0,0,C42)) ->  | D33: mm
A40: =VLOOKUP("T_Text75", Texte,Languaje, FALSE) -> T wird zu gross, bitte TH oder TB ändern, bis T:
A41: =VLOOKUP("T_Text76", Texte,Languaje, FALSE) -> TH = ( 1250-1850) mm; T <=650 mm
A42: =VLOOKUP("T_Text77", Texte,Languaje, FALSE) -> TH = ( 1851-2850) mm; T <=900mm | C42: =IF(P1=2,C5+73-C30,IF(P1=1,C24,"")) -> 
A43: =VLOOKUP("T_Text78", Texte,Languaje, FALSE) -> Gewicht ist zu hoch | C43: =IF(P1=2,C5+73-C30,IF(P1=1,C24,"")) -> 

Sheet concepta (hidden)
A1: Berechungstool HAWA-Concepta 25/30/40/50 | N1: 1 | O1: 2 | P1: 0 | Q1: 2 | R1: 1 | S1: =+C25 -> 650 | T1: =+C31 -> 
A2: =VLOOKUP("T_Text18", Texte,Languaje, FALSE) -> Spanplatte | B2: =VLOOKUP("T_Text42", Texte,Languaje, FALSE) -> 1) Grundmasse | Q2: =VLOOKUP("T_Text25", Texte,Languaje, FALSE) -> "M" minimun = Türdicke
A3: =VLOOKUP("T_Text19", Texte,Languaje, FALSE) -> MDF | B3: Material | C3: Spanplatte | Q3: =VLOOKUP("T_Text26", Texte,Languaje, FALSE) -> Weiter
A4: =VLOOKUP("T_Text20", Texte,Languaje, FALSE) -> Tischlerplatte | B4: =VLOOKUP("T_Text1", Texte,Languaje, FALSE) -> Einbauhöhe (EH) | C4: 1250 | D4: mm | H4: =C4*C5*C6*C7/10^9 -> 14.7
A5: =VLOOKUP("T_Text21", Texte,Languaje, FALSE) -> Fichte / Tanne | B5: =VLOOKUP("T_Text2", Texte,Languaje, FALSE) -> Türbreite (TB) | C5: 700 | D5: mm | Q5: =VLOOKUP("T_Text28", Texte,Languaje, FALSE) -> Zurück
A6: =VLOOKUP("T_Text22", Texte,Languaje, FALSE) -> Sonstiges (Bitte spezifisches Gewicht eingeben) | B6: =VLOOKUP("T_Text3", Texte,Languaje, FALSE) -> Türdicke | C6: 24 | D6: mm | Q6: =VLOOKUP("T_Text29", Texte,Languaje, FALSE) -> Drucken
B7: =VLOOKUP("T_Text4", Texte,Languaje, FALSE) -> Spezifisches Gewicht | C7: 700 | D7: kg/m3 | Q7: =VLOOKUP("T_Text30", Texte,Languaje, FALSE) -> Ja
B8: M | C8: 225 | D8: mm | Q8: =VLOOKUP("T_Text31", Texte,Languaje, FALSE) -> Nein
B9: =VLOOKUP("T_Text5", Texte,Languaje, FALSE) -> Tür Gewicht | C9: =C4*C5*C6*C7/10^9 -> 14.7 | D9: kg
B11: =VLOOKUP("T_Text45", Texte,Languaje, FALSE) -> Zwischenluft Seite (Z3) | C11: 3 | D11: mm
B12: =VLOOKUP("T_Text46", Texte,Languaje, FALSE) -> Zwischenluft oben (Z1) | C12: 3 | D12: mm | Q12: =VLOOKUP("T_Text46", Texte,Languaje, FALSE) -> Zwischenluft oben (Z1)
B13: =VLOOKUP("T_Text47", Texte,Languaje, FALSE) -> Zwischenluft unten (Z2) | C13: 3 | D13: mm | Q13: =VLOOKUP("T_Text47", Texte,Languaje, FALSE) -> Zwischenluft unten (Z2)
B14: =VLOOKUP("T_Text48", Texte,Languaje, FALSE) -> Türhöhe (TH) | C14: =+C4-C12-C13 -> 1244 | D14: mm | Q14: =VLOOKUP("T_Text45", Texte,Languaje, FALSE) -> Zwischenluft Seite (Z3)
B15: =VLOOKUP("T_Text5", Texte,Languaje, FALSE) -> Tür Gewicht | C15: =+C9 -> 14.7 | D15: kg
B16: =VLOOKUP("T_Text72", Texte,Languaje, FALSE) -> TA | C16: =31.5-C11 -> 28.5 | D16: mm
B18: =VLOOKUP("T_Text43", Texte,Languaje, FALSE) -> 2) Korpusmasse
B19: =VLOOKUP("T_Text44", Texte,Languaje, FALSE) -> Bitte eine Variante auswählen
B20: =VLOOKUP("T_Text49", Texte,Languaje, FALSE) -> Fixes "M" wählen | C20: =VLOOKUP("T_Text53", Texte,Languaje, FALSE) -> minimale Korpustiefe (KT)
B23: =VLOOKUP("T_Text49", Texte,Languaje, FALSE) -> Fixes "M" wählen
B24: =VLOOKUP("T_Text50", Texte,Languaje, FALSE) -> Türüberstand (M) | C24: 123 | D24: mm
B25: =VLOOKUP("T_Text51", Texte,Languaje, FALSE) -> Beschlagtiefe (T) | C25: =+C5-C24+73 -> 650 | D25: mm
B26: =VLOOKUP("T_Text52", Texte,Languaje, FALSE) -> Einschubtiefe ( E) | C26: =+C25-73 -> 577 | D26: mm
B27: =VLOOKUP("T_Text53", Texte,Languaje, FALSE) -> minimale Korpustiefe (KT) | C27: 650 | D27: mm
B29: =VLOOKUP("T_Text53", Texte,Languaje, FALSE) -> minimale Korpustiefe (KT)
B30: =VLOOKUP("T_Text54", Texte,Languaje, FALSE) -> Korpustiefe (KT) | C30: 650 | D30: mm
B31: =VLOOKUP("T_Text55", Texte,Languaje, FALSE) -> Beschlagtiefe (T) | C31: =+C5-C33+73 ->  | D31: mm
B32: =VLOOKUP("T_Text56", Texte,Languaje, FALSE) -> Einschubtiefe ( E) | C32: =+C31-73 ->  | D32: mm
B33: =VLOOKUP("T_Text57", Texte,Languaje, FALSE) -> Türüberstand (M) | C33: =IF(C42<0,0,IF(C43<=0,0,C42)) ->  | D33: mm
A40: =VLOOKUP("T_Text75", Texte,Languaje, FALSE) -> T wird zu gross, bitte TH oder TB ändern, bis T:
A41: =VLOOKUP("T_Text76", Texte,Languaje, FALSE) -> TH = ( 1250-1850) mm; T <=650 mm
A42: =VLOOKUP("T_Text77", Texte,Languaje, FALSE) -> TH = ( 1851-2850) mm; T <=900mm | C42: =IF(P1=2,C5+73-C30,IF(P1=1,C24,"")) ->  | D42: ^'=WENN(P1=2;C5+73-C30;WENN(P1=1;C24;"")) | E42: ^'=WENN(P1=2;C5+73-C30;WENN(P1=1;C24;""))
A43: =VLOOKUP("T_Text78", Texte,Languaje, FALSE) -> Gewicht ist zu hoch | C43: =IF(P1=2,C5+73-C30,IF(P1=1,C24,"")) ->  | D43: =IF(C5<=900,C31-C5,IF(C43<=900,C31-C5,D44)) ->  | E43: =IF(P1=2,C5+73-C33,IF(C31>650,"650")) -> 
A44: . | D44: =IF(C5<=900,C31-C5,"""") ->  | E44: =IF(P1=2,MIN(650,C5+73-C33),"") -> 
E45: WENN(E1>650;"650";WENN(D1=2;C1+73-C2))
E46: WENN(C31>650;"650";WENN(C4<1850;C4+73-C33)) & WENN(C31>900;"900";WENN(C4<1851;C1+73-C2)))
E47: =IF(C31>650,"650",IF(C4<1850,C4+73-C33)) -> 
E48: =WENN(E1>650;"650";WENN(D1=2;C1+73-C2))
E49: =(WENN(C31>900;"900";WENN(C4<1851;C1+73-C2)))
E50: =WENN(E1>650;"650";WENN(D1=2;C1+73-C2))
E51: =WENN(UND(F4>=1250;F4<=1850);MIN(F5-F6+73;650);WENN(UND(F4>=1851;F4<=2850);MIN(F5-F6+73;900);""))
E52: =IF(AND(C4>=1250,C4<=1850),MIN(C5-C33+73,650),IF(AND(C4>=1851,C4<=2850),MIN(C5-C33+73,900),"")) -> 

Sheet Concepta 25 (hidden)
N1: 1 | O1: 1 | P1: 2 | Q1: =+Languaje -> 2
Q2: =VLOOKUP("T_Text30", Texte,Languaje, FALSE) -> Ja
B3: =VLOOKUP("T_Text41", Texte,Languaje, FALSE) -> Berechungstool HAWA-Concepta 25/30/40/50
B6: HAWA-Concetpa 25
B7: Material | C7: =+concepta!C7 -> 700 | G7: 1250
B8: =VLOOKUP("T_Text37", Texte,Languaje, FALSE) -> Ident. Nr | C8: =VLOOKUP("T_Text39", Texte,Languaje, FALSE) -> Artikel | D8: mm | E8: =VLOOKUP("T_Text38", Texte,Languaje, FALSE) -> Stk. | H8: mm | K8: =VLOOKUP("T_Text1", Texte,Languaje, FALSE) -> Einbauhöhe (EH) | L8: =+G7 -> 1250 | M8: mm
B9: 24731 | C9: =VLOOKUP("T_Text33", Texte,Languaje, FALSE) -> HAWA-Concepta 25, 1250-1850 mm, Garnitur für 1 Holztüre | D9: 1250 - 1850 | E9: 1 | G9: EH-52 | H9: =+G7-52 -> 1198 | K9: =VLOOKUP("T_Text2", Texte,Languaje, FALSE) -> Türbreite (TB) | L9: =+I14 -> 700 | M9: mm
G10: EH/2+Q3 | H10: =+((G7/2)+H17) -> 555 | J10: 24 | K10: =VLOOKUP("T_Text48", Texte,Languaje, FALSE) -> Türhöhe (TH) | L10: =+I17 -> 1244 | M10: mm
B11: =VLOOKUP("T_Text32", Texte,Languaje, FALSE) -> ! ACHTUNG ! Die Verbindungsprofile und Ergänzungsteile müssen einzeln bestellt werden | G11: EH/2+Q | H11: =+((G7/2)+370) -> 995 | K11: =VLOOKUP("T_Text3", Texte,Languaje, FALSE) -> Türdicke | L11: 24 | M11: mm
F12: 700 | G12: T-7 | H12: =+I12-7 -> 643 | I12: 650 | J12: =+concepta!C31-7 ->  | K12: =VLOOKUP("T_Text5", Texte,Languaje, FALSE) -> Tür Gewicht | L12: 14.7 | M12: kg
F13: 123 | G13: T-40 | H13: =+I12-40 -> 610 | I13: 123 | J13: =+concepta!C31-40 ->  | L13: 28.5
G14: Q | H14: 370 | I14: 700 | J14: TB
G15: Q2 | H15: 555 | I15: 577 | J15: E
G16: P | H16: 35 | I16: 650 | J16: KT
G17: Q3 | H17: -70 | I17: 1244
G20: S+ P | H20: =+H16+L11 -> 59 | I20: =+(I17-200)/4 -> 261
G21: TA | H21: =+L13 -> 28.5 | I21: 0

Sheet Concepta 50 (hidden)
N1: 1 | O1: 1 | P1: 2
Q2: =VLOOKUP("T_Text30", Texte,Languaje, FALSE) -> Ja
B3: =VLOOKUP("T_Text41", Texte,Languaje, FALSE) -> Berechungstool HAWA-Concepta 25/30/40/50
B6: HAWA-Concetpa 50
B7: Material | C7: =+concepta!C7 -> 700 | G7: 1250 | H7: 1250 | Q7: =VLOOKUP("T_Text24", Texte,Languaje, FALSE) -> HAWA-Concepta 30 mit Führungsrolle oder HAWA-Concepta 40 mit Laufwerk
B8: =VLOOKUP("T_Text37", Texte,Languaje, FALSE) -> Ident. Nr | C8: =VLOOKUP("T_Text39", Texte,Languaje, FALSE) -> Artikel | D8: mm | E8: =VLOOKUP("T_Text38", Texte,Languaje, FALSE) -> Stk. | H8: mm | I8: 1 | J8: 2 | K8: =VLOOKUP("T_Text1", Texte,Languaje, FALSE) -> Einbauhöhe (EH) | L8: =+G7 -> 1250 | M8: mm
B9: 24734 | C9: =VLOOKUP("T_Text36", Texte,Languaje, FALSE) -> HAWA-Concepta 50, 2301-2850 mm, Garnitur für 1 Holztüre | D9: 2301 - 2850 | E9: 1 | G9: EH-105 | H9: =G7-105 -> 1145 | K9: =VLOOKUP("T_Text2", Texte,Languaje, FALSE) -> Türbreite (TB) | L9: =+I14 -> 700 | M9: mm
C10: 45 | G10: EH/2+90 | H10: =+((G7/2)+90) -> 715 | I10: S | J10: 30 | K10: =VLOOKUP("T_Text48", Texte,Languaje, FALSE) -> Türhöhe (TH) | L10: =+I17 -> 1244 | M10: mm
B11: =VLOOKUP("T_Text32", Texte,Languaje, FALSE) -> ! ACHTUNG ! Die Verbindungsprofile und Ergänzungsteile müssen einzeln bestellt werden | G11: EH/2+620 | H11: =+((G7/2)+620) -> 1245 | I11: P | J11: 35 | K11: =VLOOKUP("T_Text3", Texte,Languaje, FALSE) -> Türdicke | L11: 24 | M11: mm
G12: T-7 | H12: =+I12-7 -> 643 | I12: 650 | J12: =+concepta!C31-7 ->  | K12: =VLOOKUP("T_Text5", Texte,Languaje, FALSE) -> Tür Gewicht | L12: 14.7 | M12: kg
G13: T-40 | H13: =+I12-40 -> 610 | I13: 123 | J13: =+concepta!C31-40 ->  | L13: 28.5
I14: 700
I15: 577
G16: P | H16: 35 | I16: 650 | J16: 35
G17: S+P | H17: =+L11+H16 -> 59 | I17: 1244 | J17: =+G21-827 ->  | K17: =+G17+J17 -> 
G20: TA | H20: =+L13 -> 28.5 | I20: =+(I17-200)/4 -> 261
G21: Scharnier | H21: - | I21: 0
G25: 0
C27: 650
C30: 650

Sheet Concepta 40 (hidden)
N1: 1 | O1: 1 | P1: 2
Q2: =VLOOKUP("T_Text30", Texte,Languaje, FALSE) -> Ja
B3: =VLOOKUP("T_Text41", Texte,Languaje, FALSE) -> Berechungstool HAWA-Concepta 25/30/40/50
B6: HAWA-Concetpa 40
B7: Material | C7: =+concepta!C7 -> 700 | G7: 1250 | H7: =+G7 -> 1250 | Q7: =VLOOKUP("T_Text24", Texte,Languaje, FALSE) -> HAWA-Concepta 30 mit Führungsrolle oder HAWA-Concepta 40 mit Laufwerk
B8: =VLOOKUP("T_Text37", Texte,Languaje, FALSE) -> Ident. Nr | C8: =VLOOKUP("T_Text39", Texte,Languaje, FALSE) -> Artikel | D8: mm | E8: =VLOOKUP("T_Text38", Texte,Languaje, FALSE) -> Stk. | H8: mm | I8: 1 | J8: 2 | K8: =VLOOKUP("T_Text1", Texte,Languaje, FALSE) -> Einbauhöhe (EH) | L8: =+G7 -> 1250 | M8: mm
B9: 24733 | C9: =VLOOKUP("T_Text35", Texte,Languaje, FALSE) -> HAWA-Concepta 40, 1851-2500 mm, Garnitur für 1 Holztüre | D9: 1851 - 2500 | E9: 1 | G9: EH-105 | H9: =G7-105 -> 1145 | K9: =VLOOKUP("T_Text2", Texte,Languaje, FALSE) -> Türbreite (TB) | L9: =+I14 -> 700 | M9: mm
C10: 45 | G10: EH/2+90 | H10: =+(G7/2)+90 -> 715 | J10: 30 | K10: =VLOOKUP("T_Text48", Texte,Languaje, FALSE) -> Türhöhe (TH) | L10: =+I17 -> 1244 | M10: mm | N10: =+(L10/2)-483 -> 139
B11: =VLOOKUP("T_Text32", Texte,Languaje, FALSE) -> ! ACHTUNG ! Die Verbindungsprofile und Ergänzungsteile müssen einzeln bestellt werden | G11: EH/2+620 | H11: =+((G7/2)+620) -> 1245 | K11: =VLOOKUP("T_Text3", Texte,Languaje, FALSE) -> Türdicke | L11: 24 | M11: mm
G12: T-7 | H12: =+I12-7 -> 643 | I12: 650 | J12: =+concepta!C31-7 ->  | K12: =VLOOKUP("T_Text5", Texte,Languaje, FALSE) -> Tür Gewicht | L12: 14.7 | M12: kg
G13: T-40 | H13: =+I12-40 -> 610 | I13: 123 | J13: =+concepta!C31-40 ->  | L13: 28.5
F14: =(L10/2)-483 -> 139 | G14: Q | H14: =+N10 -> 139 | I14: 700
I15: 577
G16: P | H16: 35 | I16: 650 | J16: 35
G17: S+ P | H17: =+H16+L11 -> 59 | I17: 1244 | J17: =+G21-827 -> -827 | K17: =+#REF!+J17 -> 
G20: TA | H20: =+L13 -> 28.5 | I20: =+(I17-200)/4 -> 261
H21: - | I21: 0
G25: 0
C27: 650
C30: 650

Sheet Concepta 30 (hidden)
N1: 1 | O1: 1 | P1: 2
Q2: =VLOOKUP("T_Text30", Texte,Languaje, FALSE) -> Ja
B3: =VLOOKUP("T_Text41", Texte,Languaje, FALSE) -> Berechungstool HAWA-Concepta 25/30/40/50
B6: HAWA-Concetpa 30
B7: Material | C7: =+concepta!C7 -> 700 | G7: 1250 | H7: 1250 | Q7: =VLOOKUP("T_Text24", Texte,Languaje, FALSE) -> HAWA-Concepta 30 mit Führungsrolle oder HAWA-Concepta 40 mit Laufwerk
B8: =VLOOKUP("T_Text37", Texte,Languaje, FALSE) -> Ident. Nr | C8: =VLOOKUP("T_Text39", Texte,Languaje, FALSE) -> Artikel | D8: mm | E8: =VLOOKUP("T_Text38", Texte,Languaje, FALSE) -> Stk. | H8: mm | I8: 1 | J8: 2 | K8: =VLOOKUP("T_Text1", Texte,Languaje, FALSE) -> Einbauhöhe (EH) | L8: =+G7 -> 1250 | M8: mm | Q8: =VLOOKUP("T_Text69", Texte,Languaje, FALSE) -> Für Ihre angegebenen Werte sind zwei Gewichtsklassen möglich. Bitte wählen Sie die gewünschte Gewichtsklasse aus
B9: 24732 | C9: =VLOOKUP("T_Text34", Texte,Languaje, FALSE) -> HAWA-Concepta 30, 1851-2300 mm, Garnitur für 1 Holztüre | D9: 1851 - 2300 | E9: 1 | G9: EH-52 | H9: =G7-52 -> 1198 | K9: =VLOOKUP("T_Text2", Texte,Languaje, FALSE) -> Türbreite (TB) | L9: =+I14 -> 700 | M9: mm | Q9: =VLOOKUP("T_Text70", Texte,Languaje, FALSE) -> Mit zwei Führungsrollen für leichte Türen
G10: EH/2+Q3 | H10: =+((G7/2)+90) -> 715 | J10: 30 | K10: =VLOOKUP("T_Text48", Texte,Languaje, FALSE) -> Türhöhe (TH) | L10: =+I17 -> 1244 | M10: mm | Q10: =VLOOKUP("T_Text71", Texte,Languaje, FALSE) -> Mit einer Laufrolle oben und einer Führungsrolle unten für eine erhöhte Laufruhe
B11: =VLOOKUP("T_Text32", Texte,Languaje, FALSE) -> ! ACHTUNG ! Die Verbindungsprofile und Ergänzungsteile müssen einzeln bestellt werden | G11: EH/2+Q | H11: =+(G7/2)+660 -> 1285 | K11: =VLOOKUP("T_Text3", Texte,Languaje, FALSE) -> Türdicke | L11: 24 | M11: mm
G12: T-7 | H12: =+I12-7 -> 643 | I12: 650 | J12: T | K12: =VLOOKUP("T_Text5", Texte,Languaje, FALSE) -> Tür Gewicht | L12: 14.7 | M12: kg
G13: T-40 | H13: =+I12-40 -> 610 | I13: 123 | J13: M | L13: 28.5
G14: Q | H14: 660 | I14: 700 | J14: TB
G15: Q2 | H15: 1155 | I15: 577 | J15: E
G16: P | H16: 35 | I16: 650 | J16: KT
G17: S + P | H17: =+H16+L11 -> 59 | I17: 1244 | J17: TH | K17: =+#REF!+J17 -> 
G20: TA | H20: =+L13 -> 28.5 | I20: =+(I17-200)/4 -> 261
G21: Q3 | H21: 90 | I21: 0
G25: 0
C27: 650
C30: 650

Sheet HAWA-Concepta 25 (hidden)
A1: TH/TB | B1: 300 | C1: 350 | D1: 400 | E1: 450 | F1: 500 | G1: 550 | H1: 600 | I1: 650 | J1: 700 | K1: 750
A2: 1250 | B2: 25 | C2: 25 | D2: 25 | E2: 25 | F2: 23 | G2: 21 | H2: 19 | I2: 17 | J2: 16 | K2: 15
A3: 1300 | B3: 25 | C3: 25 | D3: 25 | E3: 25 | F3: 24 | G3: 22 | H3: 20 | I3: 18 | J3: 17 | K3: 16
A4: 1350 | B4: 25 | C4: 25 | D4: 25 | E4: 25 | F4: 25 | G4: 23 | H4: 21 | I4: 19 | J4: 18 | K4: 17
A5: 1400 | B5: 25 | C5: 25 | D5: 25 | E5: 25 | F5: 25 | G5: 24 | H5: 22 | I5: 20 | J5: 19 | K5: 17
A6: 1450 | B6: 25 | C6: 25 | D6: 25 | E6: 25 | F6: 25 | G6: 25 | H6: 23 | I6: 21 | J6: 19 | K6: 18
A7: 1500 | B7: 25 | C7: 25 | D7: 25 | E7: 25 | F7: 25 | G7: 25 | H7: 24 | I7: 22 | J7: 20 | K7: 19
A8: 1550 | B8: 25 | C8: 25 | D8: 25 | E8: 25 | F8: 25 | G8: 25 | H8: 24 | I8: 23 | J8: 21 | K8: 20
A9: 1600 | B9: 25 | C9: 25 | D9: 25 | E9: 25 | F9: 25 | G9: 25 | H9: 25 | I9: 23 | J9: 22 | K9: 20
A10: 1650 | B10: 25 | C10: 25 | D10: 25 | E10: 25 | F10: 25 | G10: 25 | H10: 25 | I10: 24 | J10: 23 | K10: 21
A11: 1700 | B11: 25 | C11: 25 | D11: 25 | E11: 25 | F11: 25 | G11: 25 | H11: 25 | I11: 25 | J11: 23 | K11: 22
A12: 1750 | B12: 25 | C12: 25 | D12: 25 | E12: 25 | F12: 25 | G12: 25 | H12: 25 | I12: 25 | J12: 24 | K12: 23
A13: 1800 | B13: 25 | C13: 25 | D13: 25 | E13: 25 | F13: 25 | G13: 25 | H13: 25 | I13: 25 | J13: 25 | K13: 23
A14: 1850 | B14: 25 | C14: 25 | D14: 25 | E14: 25 | F14: 25 | G14: 25 | H14: 25 | I14: 25 | J14: 25 | K14: 24

Sheet HAWA-Concepta 30 (hidden)
A1: TH/TB | B1: 300 | C1: 350 | D1: 400 | E1: 450 | F1: 500 | G1: 550 | H1: 600 | I1: 650 | J1: 700 | K1: 750 | L1: 800 | M1: 850 | N1: 900
A2: 1851 | B2: 30 | C2: 30 | D2: 30 | E2: 30 | F2: 30 | G2: 30 | H2: 30 | I2: 28 | J2: 26 | K2: 24 | L2: 23 | M2: 21 | N2: 20
A3: 1900 | B3: 30 | C3: 30 | D3: 30 | E3: 30 | F3: 30 | G3: 30 | H3: 30 | I3: 29 | J3: 27 | K3: 25 | L3: 23 | M3: 22 | N3: 21
A4: 1950 | B4: 30 | C4: 30 | D4: 30 | E4: 30 | F4: 30 | G4: 30 | H4: 30 | I4: 29 | J4: 27 | K4: 26 | L4: 24 | M4: 23 | N4: 21
A5: 2000 | B5: 30 | C5: 30 | D5: 30 | E5: 30 | F5: 30 | G5: 30 | H5: 30 | I5: 30 | J5: 29 | K5: 26 | L5: 25 | M5: 23 | N5: 22
A6: 2050 | B6: 30 | C6: 30 | D6: 30 | E6: 30 | F6: 30 | G6: 30 | H6: 30 | I6: 30 | J6: 29 | K6: 27 | L6: 25 | M6: 24 | N6: 23
A7: 2100 | B7: 30 | C7: 30 | D7: 30 | E7: 30 | F7: 30 | G7: 30 | H7: 30 | I7: 30 | J7: 30 | K7: 28 | L7: 26 | M7: 25 | N7: 23
A8: 2150 | B8: 30 | C8: 30 | D8: 30 | E8: 30 | F8: 30 | G8: 30 | H8: 30 | I8: 30 | J8: 30 | K8: 29 | L8: 27 | M8: 25 | N8: 24
A9: 2200 | B9: 30 | C9: 30 | D9: 30 | E9: 30 | F9: 30 | G9: 30 | H9: 30 | I9: 30 | J9: 30 | K9: 29 | L9: 28 | M9: 26 | N9: 24
A10: 2250 | B10: 30 | C10: 30 | D10: 30 | E10: 30 | F10: 30 | G10: 30 | H10: 30 | I10: 30 | J10: 30 | K10: 30 | L10: 29 | M10: 27 | N10: 25
A11: 2300 | B11: 30 | C11: 30 | D11: 30 | E11: 30 | F11: 30 | G11: 30 | H11: 30 | I11: 30 | J11: 30 | K11: 30 | L11: 29 | M11: 27 | N11: 26

Sheet HAWA-Concepta 40 (hidden)
A1: TH/TB | B1: 300 | C1: 350 | D1: 400 | E1: 450 | F1: 500 | G1: 550 | H1: 600 | I1: 650 | J1: 700 | K1: 750 | L1: 800 | M1: 850 | N1: 900
A2: 1851 | B2: 40 | C2: 40 | D2: 40 | E2: 40 | F2: 40 | G2: 40 | H2: 39 | I2: 37 | J2: 35 | K2: 33 | L2: 31 | M2: 29 | N2: 27
A3: 1900 | B3: 40 | C3: 40 | D3: 40 | E3: 40 | F3: 40 | G3: 40 | H3: 40 | I3: 38 | J3: 36 | K3: 34 | L3: 32 | M3: 30 | N3: 28
A4: 1950 | B4: 40 | C4: 40 | D4: 40 | E4: 40 | F4: 40 | G4: 40 | H4: 40 | I4: 39 | J4: 37 | K4: 35 | L4: 33 | M4: 31 | N4: 29
A5: 2000 | B5: 40 | C5: 40 | D5: 40 | E5: 40 | F5: 40 | G5: 40 | H5: 40 | I5: 40 | J5: 38 | K5: 36 | L5: 34 | M5: 32 | N5: 30
A6: 2050 | B6: 40 | C6: 40 | D6: 40 | E6: 40 | F6: 40 | G6: 40 | H6: 40 | I6: 40 | J6: 39 | K6: 37 | L6: 35 | M6: 33 | N6: 31
A7: 2100 | B7: 40 | C7: 40 | D7: 40 | E7: 40 | F7: 40 | G7: 40 | H7: 40 | I7: 40 | J7: 40 | K7: 38 | L7: 36 | M7: 34 | N7: 32
A8: 2150 | B8: 40 | C8: 40 | D8: 40 | E8: 40 | F8: 40 | G8: 40 | H8: 40 | I8: 40 | J8: 40 | K8: 39 | L8: 37 | M8: 35 | N8: 33
A9: 2200 | B9: 40 | C9: 40 | D9: 40 | E9: 40 | F9: 40 | G9: 40 | H9: 40 | I9: 40 | J9: 40 | K9: 40 | L9: 38 | M9: 36 | N9: 34
A10: 2250 | B10: 40 | C10: 40 | D10: 40 | E10: 40 | F10: 40 | G10: 40 | H10: 40 | I10: 40 | J10: 40 | K10: 40 | L10: 39 | M10: 37 | N10: 35
A11: 2300 | B11: 40 | C11: 40 | D11: 40 | E11: 40 | F11: 40 | G11: 40 | H11: 40 | I11: 40 | J11: 40 | K11: 40 | L11: 40 | M11: 38 | N11: 36
A12: 2350 | B12: 40 | C12: 40 | D12: 40 | E12: 40 | F12: 40 | G12: 40 | H12: 40 | I12: 40 | J12: 40 | K12: 40 | L12: 40 | M12: 39 | N12: 37
A13: 2400 | B13: 40 | C13: 40 | D13: 40 | E13: 40 | F13: 40 | G13: 40 | H13: 40 | I13: 40 | J13: 40 | K13: 40 | L13: 40 | M13: 40 | N13: 38
A14: 2450 | B14: 40 | C14: 40 | D14: 40 | E14: 40 | F14: 40 | G14: 40 | H14: 40 | I14: 40 | J14: 40 | K14: 40 | L14: 40 | M14: 40 | N14: 39
A15: 2500 | B15: 40 | C15: 40 | D15: 40 | E15: 40 | F15: 40 | G15: 40 | H15: 40 | I15: 40 | J15: 40 | K15: 40 | L15: 40 | M15: 40 | N15: 40

Sheet HAWA-Concepta 50 (hidden)
A1: TH/TB | B1: 300 | C1: 350 | D1: 400 | E1: 450 | F1: 500 | G1: 550 | H1: 600 | I1: 650 | J1: 700 | K1: 750 | L1: 800 | M1: 850 | N1: 900
A2: 2301 | B2: 50 | C2: 50 | D2: 50 | E2: 50 | F2: 50 | G2: 50 | H2: 50 | I2: 50 | J2: 50 | K2: 50 | L2: 50 | M2: 50 | N2: 48
A3: 2350 | B3: 50 | C3: 50 | D3: 50 | E3: 50 | F3: 50 | G3: 50 | H3: 50 | I3: 50 | J3: 50 | K3: 50 | L3: 50 | M3: 50 | N3: 49
A4: 2400 | B4: 50 | C4: 50 | D4: 50 | E4: 50 | F4: 50 | G4: 50 | H4: 50 | I4: 50 | J4: 50 | K4: 50 | L4: 50 | M4: 50 | N4: 50
A5: 2450 | B5: 50 | C5: 50 | D5: 50 | E5: 50 | F5: 50 | G5: 50 | H5: 50 | I5: 50 | J5: 50 | K5: 50 | L5: 50 | M5: 50 | N5: 50
A6: 2500 | B6: 50 | C6: 50 | D6: 50 | E6: 50 | F6: 50 | G6: 50 | H6: 50 | I6: 50 | J6: 50 | K6: 50 | L6: 50 | M6: 50 | N6: 50
A7: 2550 | B7: 50 | C7: 50 | D7: 50 | E7: 50 | F7: 50 | G7: 50 | H7: 50 | I7: 50 | J7: 50 | K7: 50 | L7: 50 | M7: 50 | N7: 50
A8: 2600 | B8: 50 | C8: 50 | D8: 50 | E8: 50 | F8: 50 | G8: 50 | H8: 50 | I8: 50 | J8: 50 | K8: 50 | L8: 50 | M8: 50 | N8: 50
A9: 2650 | B9: 50 | C9: 50 | D9: 50 | E9: 50 | F9: 50 | G9: 50 | H9: 50 | I9: 50 | J9: 50 | K9: 50 | L9: 50 | M9: 50 | N9: 50
A10: 2700 | B10: 50 | C10: 50 | D10: 50 | E10: 50 | F10: 50 | G10: 50 | H10: 50 | I10: 50 | J10: 50 | K10: 50 | L10: 50 | M10: 50 | N10: 50
A11: 2750 | B11: 50 | C11: 50 | D11: 50 | E11: 50 | F11: 50 | G11: 50 | H11: 50 | I11: 50 | J11: 50 | K11: 50 | L11: 50 | M11: 50 | N11: 50
A12: 2800 | B12: 50 | C12: 50 | D12: 50 | E12: 50 | F12: 50 | G12: 50 | H12: 50 | I12: 50 | J12: 50 | K12: 50 | L12: 50 | M12: 50 | N12: 50
A13: 2850 | B13: 50 | C13: 50 | D13: 50 | E13: 50 | F13: 50 | G13: 50 | H13: 50 | I13: 50 | J13: 50 | K13: 50 | L13: 50 | M13: 50 | N13: 50

Sheet Bilder (hidden)
B1: 1
A4: Concepta
A5: 55
A6: 110
A7: nische

Sheet Text (hidden)
B2: DE | C2: EN | D2: FR | E2: IT | F2: SP
B3: Material | F3: Material
A4: T_Text1 | B4: Einbauhöhe (EH) | C4: Installation height (EH) | D4: Hauteur d'encastrement (EH) | E4: Altezza di montaggio (EH) | F4: Altura de montaje (EH)
A5: T_Text2 | B5: Türbreite (TB) | C5: Door width (TB) | D5: Largeur de porte (TB) | E5: Larghezza anta (TB) | F5: Ancho del panel (TB)
A6: T_Text3 | B6: Türdicke | C6: Door thickness | D6: Epaisseur de porte | E6: Spessore ante | F6: Espesor de la puerta
A7: T_Text4 | B7: Spezifisches Gewicht | C7: Specific weight | D7: Poids spécifique | E7: Peso specifico | F7: Peso especifico
A8: T_Text5 | B8: Tür Gewicht | C8: Door weight | D8: Poids de porte | E8: Peso della porta | F8: Peso puerta
A9: T_Text6 | F9: Ingresar profundidad del mueble en mm
A10: T_Text7 | B10: Bitte "M" ändern | C10: Please change "M" | D10: Prière de changer de « M » | E10: Si prega di cambiare "M" | F10: Ingresar la medida de manecilla "M"
A11: T_Text8 | F11: Si existe, ingresar la profundidad del mueble
A12: T_Text9 | B12: Schranktiefe | C12: Cabinet depth | D12: Profondeur de l'armoire | E12: Profondità armadio | F12: Profundidad del mueble
A13: T_Text10 | B13: Beschlagstiefe (T) | D13: Profundeur de ferrure (T) | E13: Profondita di montaggio (T) | F13: Profundidad del herraje (T)
A14: T_Text11 | C14: Door handle spacing (M) | D14: Dimensions de la poignüèe de la porte (M) | E14: Distanza maniglia (M) | F14: Distancia tirador de la puerta (M)
A15: T_Text12 | B15: Türhöhe (TH) | C15: Door height (TH) | D15: Hateur de porte (TH) | E15: Altezza anta (TH) | F15: Altura del panel (TH)
A16: T_Text13 | B16: Einschubtiefe (E) | C16: Slide-in depth ( E ) | D16: Profondeur d'escamotage ( E ) | E16: Profundità di innesto ( E ) | F16: Profundidad para insertar ( E )
A17: T_Text14 | B17: Korpustiefe (KT) | C17: Cabinet depth (KT) | D17: (KT) | E17: (KT) | F17: Profundidad del mueble (KT)
A18: T_Text15 | B18: Artikel | C18: Code | D18: N° | E18: N° | F18: Codigo N°
A19: T_Text16 | B19: Stück | C19: Pieces | D19: Pièces | E19: Pezza | F19: Piezas
A20: T_Text17 | C20: Mesures | D20: Mesures | E20: Misurazione | F20: Medidas
A21: T_Text18 | B21: Spanplatte | C21: chipboard | D21: panneau d'agglomérés | E21: pannelli truciolare | F21: Tablero aglomerado
A22: T_Text19 | B22: MDF | C22: MDF | D22: MDF | E22: Pannello MDF | F22: Tablero de MDF
A23: T_Text20 | B23: Tischlerplatte | C23: core-board | D23: Panneau latté | E23: listellare | F23: Tablero de plywood
A24: T_Text21 | B24: Fichte / Tanne | C24: spruce / fir tree | D24: Epicéa / Sapin | E24: abete rosso / abete | F24: Abeto
A25: T_Text22 | B25: Sonstiges (Bitte spezifisches Gewicht eingeben) | C25: Other (please enter specific weight) | D25: Autres (prière de saisir le poids spécifique) | E25: Altro (indicare il peso specifico) | F25: Otro (ingresar peso específico)
A26: T_Text23
A27: T_Text24 | B27: HAWA-Concepta 30 mit Führungsrolle oder HAWA-Concepta 40 mit Laufwerk | C27: HAWA-Concepta 30 with guide roller or HAWA-Concepta 40 with trolley | D27: HAWA-Concepta 30 avec galet de guidage ou HAWA-Concepta 40 avec chariot | E27: HAWA-Concepta 30 con rullo di guida o HAWA-Concepta 40 con carrello | F27: HAWA-Concepta 30 con rodillo, o, HAWA-Concepta 40 con cojinete
A28: T_Text25 | B28: "M" minimun = Türdicke | C28: "M" minimum = door thickness | D28: M minimum = épaisseur de porte | E28: M minimo = spessore anta | F28: Distancia "M" minima = espesor puerta
A29: T_Text26 | B29: Weiter | C29: Next | D29: Suite | E29: avanti | F29: Siguiente
A30: T_Text27 | B30: zurücksetzen | C30: Reset | D30: reculer | E30: resettare | F30: Reiniciar
A31: T_Text28 | B31: Zurück | C31: Back | D31: Retour | E31: indietro | F31: Regresar
A32: T_Text29 | B32: Drucken | C32: Print | D32: imprimer | E32: stampare | F32: Imprimir
A33: T_Text30 | B33: Ja | C33: yes | D33: oui | E33: sì | F33: si
A34: T_Text31 | B34: Nein | C34: no | D34: non | E34: no | F34: no
A35: T_Text32 | B35: ! ACHTUNG ! Die Verbindungsprofile und Ergänzungsteile müssen einzeln bestellt werden | C35: ! ATTENTION ! The connection profiles and supplementary parts must be ordered individually | D35: ! ATTENTION ! Les profils de raccordement et les accessoires doivent être commandés séparément | E35: ! ATTENZIONE ! I profili di collegamento e gli accessori devono essere ordinati singolarmente | F35: ! Atención! Perfiles de unión y piezas adicionales deben solicitarse por separado
A36: T_Text33 | B36: HAWA-Concepta 25, 1250-1850 mm, Garnitur für 1 Holztüre | C36: HAWA-Concepta 25, 1250-1850 mm, set for 1 wooden door | D36: HAWA-Concepta 25, 1250-1850 mm, garniture pour 1 porte en bois | E36: HAWA-Concepta 25, 1250-1850 mm, corredo per 1 anta in legno | F36: HAWA-Concepta 25, 1250-1850 mm, juego para 1 puerta
A37: T_Text34 | B37: HAWA-Concepta 30, 1851-2300 mm, Garnitur für 1 Holztüre | C37: HAWA-Concepta 30, 1851-2300 mm, set for 1 wooden door | D37: HAWA-Concepta 30, 1851-2300 mm, garniture pour 1 porte en bois | E37: HAWA-Concepta 30, 1851-2300 mm, corredo per 1 anta in legno | F37: HAWA-Concepta 30, 1851-2300 mm, juego para 1 puerta
A38: T_Text35 | B38: HAWA-Concepta 40, 1851-2500 mm, Garnitur für 1 Holztüre | C38: HAWA-Concepta 40, 1851-2500 mm, set for 1 wooden door | D38: HAWA-Concepta 40, 1851-2500 mm, garniture pour 1 porte en bois | E38: HAWA-Concepta 40, 1851-2500 mm, corredo per 1 anta in legno | F38: HAWA-Concepta 40, 1851-2500 mm, juego para 1 puerta
A39: T_Text36 | B39: HAWA-Concepta 50, 2301-2850 mm, Garnitur für 1 Holztüre | C39: HAWA-Concepta 50, 2301-2850 mm, set for 1 wooden door | D39: HAWA-Concepta 50, 2301-2850 mm, garniture pour 1 porte en bois | E39: HAWA-Concepta 50, 2301-2850 mm, corredo per 1 anta in legno | F39: HAWA-Concepta 50, 2301-2850 mm, juego para 1 puerta
A40: T_Text37 | B40: Ident. Nr | C40: Ident. no. | D40: N° d'ident. | E40: N. ID | F40: N°
A41: T_Text38 | B41: Stk. | C41: Pieces | D41: Pièces | E41: pz. | F41: Pieza
A42: T_Text39 | B42: Artikel | C42: Article | D42: Article | E42: Articolo | F42: Artículo
A43: T_Text40 | C43: measurements | F43: Medidas
A44: T_Text41 | B44: Berechungstool HAWA-Concepta 25/30/40/50 | C44: Calculator HAWA-Concepta 25/30/40/50 | D44: Outil de calcul pour HAWA-Concepta 25/30/40/50 | E44: Strumento di calcolo HAWA-Concepta 25/30/40/50 | F44: Herramienta de cálculo HAWA-Concepta 25/30/40/50
A45: T_Text42 | B45: 1) Grundmasse | C45: 1) Basic dimensions | D45: 1) Dimensions de base | E45: 1) Massa base | F45: 1) Dimensiones básicas
A46: T_Text43 | B46: 2) Korpusmasse | C46: 2) Corp dimensions | D46: 2) Dimensions du corps | E46: 2) Massa corpo | F46: 2) Dimensiones del mueble
A47: T_Text44 | B47: Bitte eine Variante auswählen | C47: Please select a variant | D47: Prière de sélectionner une variante | E47: Scegliere una variante | F47: Por favor seleccione una opción
A48: T_Text45 | B48: Zwischenluft Seite (Z3) | C48: Side air gap (Z3) | D48: Espace sur le côté (Z3) | E48: Luce lato (Z3) | F48: Holgura lateral (Z3)
A49: T_Text46 | B49: Zwischenluft oben (Z1) | C49: Top air gap (Z1) | D49: Espace en haut (Z1) | E49: Luce sopra (Z1) | F49: Holgura supeior (Z1)
A50: T_Text47 | B50: Zwischenluft unten (Z2) | C50: Bottom air gap (Z2) | D50: Espace en bas (Z2) | E50: Luce sotto (Z2) | F50: Holgura inferior (Z2)
A51: T_Text48 | B51: Türhöhe (TH) | C51: Door height (TH) | D51: Hauteur de porte (TH) | E51: Altezza anta (TH) | F51: Altura de puerta (TH)
A52: T_Text49 | B52: Fixes "M" wählen | C52: Select fixed "M" | D52: Choisir une « M » fixe | E52: Selezionare "M" fissa | F52: Valor M fijo y KT variable
A53: T_Text50 | B53: Türüberstand (M) | C53: Door overlap (M) | D53: Saillie de porte (M) | E53: Sporgenza anta (M) | F53: Traslape de puerta (M)
A54: T_Text51 | B54: Beschlagtiefe (T) | C54: Hardware depth (T) | D54: Profondeur de ferrure (T) | E54: Profondità ferramenta (T) | F54: Profundidad del herraje (T)
A55: T_Text52 | B55: Einschubtiefe ( E) | C55: Insertion depth ( E) | D55: Profondeur d'escamotage (E) | E55: Profondità di incasso ( E) | F55: Profundidad para insertar ( E )
A56: T_Text53 | B56: minimale Korpustiefe (KT) | C56: Select fixed "KT" | D56: Choisir une « KT » fixe | E56: Selezionare "KT" fissa | F56: Profundidad del mueble (KT)
A57: T_Text54 | B57: Korpustiefe (KT) | C57: Cabinet depth (KT) | D57: Profondeur de corps (KT) | E57: Profondità corpo (KT) | F57: Profundidad del mueble (KT)
A58: T_Text55 | B58: Beschlagtiefe (T) | C58: Hardware depth (T) | D58: Profondeur de ferrure (T) | E58: Profondità ferramenta (T) | F58: Profundidad del herraje (T)
A59: T_Text56 | B59: Einschubtiefe ( E) | C59: Insertion depth (E) | D59: Profondeur d'escamotage (E) | E59: Profondità di incasso ( E) | F59: Profundidad para insertar ( E )
A60: T_Text57 | B60: Türüberstand (M) | C60: Door overlap (M) | D60: Saillie de porte (M) | E60: Sporgenza anta (M) | F60: Traslape de puerta (M)
A61: T_Text58 | B61: Connector 55 mm: Nische für eine Dreh-Einschiebetüre. | C61: Connector 55 mm: recess for one pivot/slide-in door. | D61: Connector 55 mm : niche pour une porte pivotante et escamotable. | E61: Connector 55 mm: nicchia per una anta roto-rientrante. | F61: Connector 55 mm para una puerta pivotante e insertable
A62: T_Text59 | B62: Leichmetall farblos eloxiert, 1 Stück | C62: Aluminum, plain anodized, 1 piece | D62: métal léger, anodisé couleur argent, 1 pièce | E62: Alluminio anodizzato incolore, 1 pezzo | F62: aluminio anodizado plata, 1 pieza
A63: T_Text60 | B63: 650 mm, Ident. Nr. 23221 | C63: 650 mm, Ident. no. 23221 | D63: 650 mm, n° d'ident. 23221 | E63: 650 mm, N. ID 23221 | F63: 650 mm, codigo Nr. 23221
A64: T_Text61 | B64: 900 mm, Ident. Nr. 23222 | C64: 900 mm, Ident. no. 23222 | D64: 900 mm, n° d'ident. 23222 | E64: 900 mm, N. ID 23222 | F64: 900 mm, codigo Nr. 23222
A65: T_Text62 | B65: Connector 110 mm: Nische für Zwei Dreh-Einschiebetüre. | C65: Connector 110 mm: recess for two pivot/slide-in doors | D65: Connector 110 mm : niche pour deux portes pivotantes et escamotables. | E65: Connector 110 mm: nicchia per due ante roto-rientranti | F65: Connector 110 mm para dos puertas pivotantes e insertables
A66: T_Text63 | B66: Leichmetall farblos eloxiert, 1 Stück | C66: Aluminum, plain anodized, 1 piece | D66: métal léger, anodisé couleur argent, 1 pièce | E66: Alluminio anodizzato incolore, 1 pezzo | F66: aluminio anodizado plata, 1 pieza
A67: T_Text64 | B67: 650 mm, Ident. Nr. 23223 | C67: 650 mm, Ident. no. 23223 | D67: 650 mm, n° d'ident. 23223 | E67: 650 mm, N. ID 23223 | F67: 650 mm, codigo. Nr. 23223
A68: T_Text65 | B68: 900 mm, Ident. Nr. 23224 | C68: 900 mm, Ident. no. 23224 | D68: 900 mm, n° d'ident. 23224 | E68: 900 mm, N. ID 23224 | F68: 900 mm, codigo Nr. 23224
A69: T_Text66 | B69: 26 mm, Ident. Nr. 23225 | C69: 26 mm, Ident. no. 23225 | D69: 26 mm, n° d'ident. 23225 | E69: 26 mm, N. ID 23225 | F69: Connector: codigo Nr. 23225
A70: T_Text67 | B70: Zubehör separat bestellen | C70: Order accessories separately | D70: Commander les accessoires séparément | E70: Ordinare gli accessori separatamente | F70: Solicitar accesorios por separado
A71: T_Text68 | B71: Achtung: Bei einer Türdicke >30mm muss eine spezielle Detaillösung angewendet werden. | C71: Attention: a special detailed solution is required for door thicknesses >30 mm. | D71: Attention : en cas d'épaisseur de porte > 30 mm, une solution détaillée spécifique doit être utilisée. | E71: Attenzione: con spessore anta >30mm utilizzare una soluzione specifica. | F71: Atención:para una puerta con un espesor mayor a 30mm, se requiere una solución especial.
A72: T_Text69 | B72: Für Ihre angegebenen Werte sind zwei Gewichtsklassen möglich. Bitte wählen Sie die gewünschte Gewichtsklasse aus | C72: There are two possible weight classes for your input. Please select the desired weight class. | D72: Pour le valeur indiqué sont 2 variantes de poids possible. S.v.p choisissez votre classe du poids. | E72: Due classi di peso sono possibili per i vostri valori specificati. Si prega di selezionare la classe di peso desiderato | F72: De acuerdo a los datos ingresados, es posible elegir entre dos sistemas diferentes.
A73: T_Text70 | B73: Mit zwei Führungsrollen für leichte Türen | C73: With two guide rollers for lightweight doors | D73: Avec 2 galets de guidage pour des portes légères | E73: Con due rulli di guida per porte leggere | F73: Sistema con dos rodillos para puertas ligeras
A74: T_Text71 | B74: Mit einer Laufrolle oben und einer Führungsrolle unten für eine erhöhte Laufruhe | C74: With a two wheeled trolley above and a bottom guide for smoother running. | D74: Avec galet double haut/bas pour un coulissements silencieux | E74: Con un rullo sopra e un rullo di guida in basso per un agevole esecuzione | F74: Sistema con cojinetes y rodillo de guía inferior, para un movimiento silencioso
A75: T_Text72 | B75: TA | C75: TA | D75: TA | E75: TA | F75: TA
A76: T_Text73 | B76: Weiter | C76: Next | D76: Suite | E76: Seguente | F76: Siguiente
A77: T_Text74 | B77: Züruck | C77: Back | D77: Retour | E77: Ritornare | F77: Regresar
A78: T_Text75 | B78: T wird zu gross, bitte TH oder TB ändern, bis T: | C78: T is to big, please change TH or TB | D78: T est trop grand; changez TH svp | E78: T e troppo grande; cambio TH per favore | F78: T es muy grande, por favor cambie TH o TB
A79: T_Text76 | B79: TH = ( 1250-1850) mm; T <=650 mm | C79: TH = ( 1250-1850) mm; T <=650 mm | D79: TH = ( 1250-1850) mm; T <=650 mm | E79: TH = ( 1250-1850) mm; T <=650 mm | F79: TH = ( 1250-1850) mm; T <=650 mm
A80: T_Text77 | B80: TH = ( 1851-2850) mm; T <=900mm | C80: TH = ( 1851-2850) mm; T <=900mm | D80: TH = ( 1851-2850) mm; T <=900mm | E80: TH = ( 1851-2850) mm; T <=900mm | F80: TH = ( 1851-2850) mm; T <=900mm
A81: T_Text78 | B81: Gewicht ist zu hoch | C81: Weight is too high | D81: Le poids est trop élevé | E81: Il peso è troppo alta | F81: El peso es demasiado alto
A82: T_Text79 | B82: T wird zu gross, bitte TH oder TB ändern, bis T:

Sheet Home
B1: Berechungstool HAWA-Concepta 25/30/40/50
Y8: Vers_27.06.2017_Online
A90: =VLOOKUP("T_Text68", Texte,Languaje, FALSE) -> Achtung: Bei einer Türdicke >30mm muss eine spezielle Detaillösung angewendet werden.
